Cogmind - Beta 14 @@@ ROGUE MODE // 2024.10.18 @ 14:13:18 Player: boatgirl69 Result: Destroyed by G-47 Trooper with Particle Gun Performance ------------- Evolutions (2) 1000 Regions Visited (3) 600 Robots Destroyed (95) 475 Value Destroyed (2249) 2249 Prototype IDs (3) 60 Alien Tech Used (0) 0 Bonus (327) 327 TOTAL SCORE: 4711 Bonus ------- High Alert Combat Kills 327 Cogmind --------- Core Integrity 0/550 Matter 230/300 Energy 64/100 System Corruption 0% Temperature Cool (41) Movement Walking (260) Ox2 Location -8/Materials Parts ------- > --- POWER (2) -------- (None) > --- PROPULSION (2) --- Carbon-fiber Leg > --- UTILITY (4) ------ Heat Sink High-capacity Storage Unit > --- WEAPON (3) ------- Flail Flail > --- INVENTORY (20) --- Improved Ion Engine Reinforced Ion Engine Reinforced Ion Engine Weight Redist. System Structural Scanner Terrain Scan Processor Field Recycling Unit (0) Peak State ------------ > --- POWER ------------ Reinforced Ion Engine Deuterium Engine > --- PROPULSION ------- Light Treads Light Treads > --- UTILITY ---------- Improved Heat Sink High-capacity Storage Unit Seismic Detector Hardened Medium Armor Plating > --- WEAPON ----------- Improved EM Shotgun Grenade Launcher Flail > --- INVENTORY -------- Reinforced Ion Engine Reinforced Ion Engine Nuclear Core Light Treads Light Treads Improved Heat Sink Terrain Scan Processor Tractor Beam Heavy EM Pulse Gun Particle Cannon Particle Cannon Light Cannon Light Cannon Light Cannon Grenade Launcher Grenade Launcher Concussive RPG Concussive RPG Concussive RPG Flail [Rating: 24] Favorites ----------- Power Light Ion Engine Engine Light Ion Engine Power Core Nuclear Core Propulsion Light Treads Treads Light Treads Leg Carbon-fiber Leg Wheel Wheel Utility High-capacity Storage Unit Device Seismic Detector Storage High-capacity Storage Unit Protection Hardened Medium Armor Plating Weapon Grenade Launcher Energy Gun Particle Gun Energy Cannon Particle Cannon Ballistic Gun Light Assault Rifle Ballistic Cannon Light Cannon Launcher Grenade Launcher Special Weapon Mining Laser Impact Weapon Flail Build | -11 -10 -9 -8 ------- Run | Yrd Mat Mat Mat Slots Evolved 4 | . . 2 2 Power 1 | . . 1 . Propulsion . | . . . . Utility 2 | . . 1 1 Weapon 1 | . . . 1 Parts Attached 80 | 6 14 16 44 Power 11 | 1 . 7 3 Engine 10 | 1 . 7 2 Core 1 | . . . 1 Reactor . | . . . . Propulsion 20 | 2 4 3 11 Treads 10 | 2 1 . 7 Leg 1 | . . . 1 Wheel 9 | . 3 3 3 Hover . | . . . . Flight . | . . . . Utility 14 | 1 2 3 8 Device 8 | . 1 3 4 Storage 2 | 1 1 . . Processor . | . . . . Hackware . | . . . . Protection 4 | . . . 4 Artifact . | . . . . Weapon 35 | 2 8 3 22 Energy Gun 9 | 1 3 1 4 Energy Cannon 4 | . . 1 3 Ballistic Gun 3 | 1 2 . . Ballistic Cannon 3 | . . . 3 Launcher 9 | . . 1 8 Special Weapon 3 | . 3 . . Impact Weapon 4 | . . . 4 Slashing Weapon . | . . . . Piercing Weapon . | . . . . Special Melee Weapon . | . . . . Unidentified Prototypes 2 | . . 1 1 Parts Lost 35 | . 3 1 31 Power 4 | . . . 4 Propulsion 10 | . 1 1 8 Utility 8 | . . . 8 Weapon 13 | . 2 . 11 Highest Loss Streak 16 | . 2 1 16 To Critical Strikes . | . . . . Average Slot Usage (%) 92 | . 99 97 85 Engine 16 | . 14 21 14 Core 1 | . . . 2 Treads 11 | . 23 . 11 Wheel 8 | . 4 20 3 Device 17 | . 14 21 17 Storage 10 | . 14 11 9 Protection 2 | . . . 4 Energy Gun 4 | . 7 6 2 Energy Cannon 4 | . . 3 8 Ballistic Gun 5 | . 18 2 . Launcher 5 | . . 8 7 Impact Weapon 1 | . . . 3 Peak Build Rating 24 | 6 9 16 24 Average Rating 13 | 4 8 12 18 On Entrance 7 | . 6 9 16 Naked Turns . | . . . . Heaviest Build 80 | 10 47 69 80 Greatest Support 40 | 40 40 26 40 Greatest Overweight (x) 7 | . 2 5 7 Average Overweight (x) 2 | . 1 2 3 Largest Inventory Capacity 20 | 8 20 20 20 Average Capacity 18 | 7 17 20 20 Most Carried 20 | 8 19 20 20 Average Carried 15 | 6 13 19 16 Final Capacity 20 | 8 20 20 20 Final Carried 20 | 7 19 20 7 Class Distribution -------------------- 46% | Mutant 43% | Scavenger-Mutant 3% | Scavenger-Gunner Dominant Class ---------------- Mutant | -10/Materials Scavenger-Mutant | -9/Materials Scavenger-Mutant | -8/Materials Resources | -11 -10 -9 -8 ----------- Run | Yrd Mat Mat Mat Matter Collected 1510 | 260 210 249 791 Remotely 141 | . . . 141 Salvage Created 2292 | 104 436 410 1342 Parts 170 | 10 28 31 101 Haulers Intercepted 3 | . . . 3 Recyclers Shooed 5 | . 1 1 3 Parts Field Recycled . | . . . . Retrieved Matter . | . . . . Parts Self-Destructed . | . . . . Prevented . | . . . . Kills | -11 -10 -9 -8 ------- Run | Yrd Mat Mat Mat Combat Hostiles Destroyed 57 | . 14 13 30 Guns 16 | . 13 1 2 Cannons 10 | . . 4 6 AOE 31 | . 1 8 22 Classes Destroyed 13 | 2 3 3 5 Worker 9 | . . . 9 Builder 15 | . . 4 11 Tunneler 3 | 3 . . . Hauler 3 | . . . 3 Recycler 4 | 1 . . 3 Watcher 4 | . 2 . 2 Swarmer 14 | . 6 3 5 Grunt 31 | . 8 6 17 Brawler 2 | . . . 2 Duelist 3 | . . 1 2 Protector 1 | . . . 1 Sentry 5 | . . 3 2 Hunter 1 | . . . 1 Best Kill Streak 16 | 2 5 5 16 Combat Bots Only 7 | . 3 3 7 Max Kills in Single Turn 4 | 1 2 3 4 Gunslinging . | . . . . Exploded 3 | . 1 3 2 Melee . | . . . . Uniques/NPCs Destroyed . | . . . . Combat | -11 -10 -9 -8 -------- Run | Yrd Mat Mat Mat Hostile Shots Fired 420 | . 88 44 288 Missed 115 | . 25 16 74 Damage Taken 4454 | . 744 365 3345 Core 834 | . 160 108 566 Absorbed by Shields . | . . . . Regen/Repaired (Parts) 13 | . . 13 . Core Remaining (%) 69 | 100 36 73 . Volleys Fired 184 | 17 64 35 68 Largest 3 | 1 2 2 3 Hottest 166 | 40 140 98 166 Shots Fired 327 | 17 118 57 135 Gun 156 | 17 109 20 10 Cannon 93 | . . 16 77 Launcher 69 | . . 21 48 Special 9 | . 9 . . Kinetic 107 | . 85 5 17 Thermal 131 | 17 20 31 63 Explosive 69 | . . 21 48 Electromagnetic 20 | . 13 . 7 Robot Hit Streak 12 | 5 12 4 12 Robot Miss Streak 7 | 2 5 5 7 Penetration Max . | . . . . Secondary Targets 3 | . 3 . . Max Gunslinging Chain 1 | . 1 . . Shots Hit Robots 160 | 13 64 17 66 Core Hits 170 | 5 27 25 113 Critical Kills . | . . . . Critical Parts Destroyed . | . . . . Critical Strikes 2 | . . 1 1 Burn 2 | . . 1 1 Melee Attacks 1 | . . . 1 Impact 1 | . . . 1 Slashing . | . . . . Piercing . | . . . . Sneak Attacks . | . . . . Combat Hostiles . | . . . . Follow-up Attacks . | . . . . Damage Inflicted 6311 | 148 697 987 4479 Guns 908 | 148 542 90 128 Cannons 1065 | . . 182 883 Explosions 4266 | . 83 715 3468 Melee . | . . . . Ramming . | . . . . Kinetic 581 | . 343 26 212 Thermal 1295 | 148 231 246 670 Explosive 4183 | . . 715 3468 Electromagnetic 218 | . 123 . 95 Impact 34 | . . . 34 Slashing . | . . . . Piercing . | . . . . Highest Corruption 2 | . . 2 . Average Corruption 2 | . . 2 . Corruption Purged . | . . . . Corruption Blocked . | . . . . Effects 2 | . . 2 . Message Errors 1 | . . 1 . Heat Flow Errors 1 | . . 1 . Overload Shots . | . . . . Overflow Damage 109 | . . 21 88 Projectiles 18 | . . 12 6 Explosions 91 | . . 9 82 Melee . | . . . . Knockbacks 3 | . . . 3 Impact . | . . . . Kinetic 3 | . . . 3 Secondary . | . . . . Self-Inflicted Damage 344 | . . 15 329 Shots 15 | . . 1 14 Rammed . | . . . . Targets Rammed . | . . . . Kicked . | . . . . Crushed . | . . . . Highest Temperature 460 | . 286 308 460 Average Temperature 100 | . 53 105 120 Received Heat Transfer 1983 | . 435 171 1377 Effects 9 | . 2 . 7 Shutdowns 2 | . . . 2 Energy Bleed 1 | . . . 1 Interference 2 | . 2 . . Damage (major) 4 | . . . 4 Siege Activations . | . . . . Robots Corrupted . | . . . . Combat Hostiles . | . . . . Parts Fried . | . . . . Impact Corruptions . | . . . . Robots Melted . | . . . . Combat Hostiles . | . . . . Parts Melted . | . . . . Heat Transferred 2597 | 325 422 555 1295 Parts Sabotaged . | . . . . Parts Stolen . | . . . . Parts Stripped . | . . . . Power Chain Reactions 2 | . 1 . 1 Alert | -11 -10 -9 -8 ------- Run | Yrd Mat Mat Mat Peak Influence 846 | 20 274 496 846 Initial 209 | . 13 86 209 Average 323 | 8 136 213 566 Maximum Alert Level 3 | . 1 2 3 Low Security (%) 41 | 100 77 55 . Level 1 24 | . 22 31 26 Level 2 19 | . . 12 39 Level 3 14 | . . . 34 Level 4 . | . . . . Level 5 . | . . . . High Security . | . . . . Max Security . | . . . . Squads Dispatched 10 | . 1 3 6 Investigation 2 | . 1 1 . Extermination . | . . . . Reinforcement 7 | . . 2 5 Assault 1 | . . . 1 Garrison . | . . . . Intercept . | . . . . Searches Triggered . | . . . . Construction Impeded 5 | . . 1 4 Haulers Reinforced . | . . . . Active Scanning Responses . | . . . . Cargo Convoy Interrupts . | . . . . Stealth | -11 -10 -9 -8 --------- Run | Yrd Mat Mat Mat Distress Signals 6 | . 3 2 1 Communications Jammed . | . . . . Distress Signals . | . . . . Times Spotted 79 | . 17 14 48 Peak Tracking Total 9 | . 4 3 9 Tactical Retreats 3 | . 2 1 . Traps | -11 -10 -9 -8 ------- Run | Yrd Mat Mat Mat Traps Triggered 1 | . 1 . . Indirectly . | . . . . Trap Hack Attempts . | . . . . Triggered . | . . . . Disarmed . | . . . . Reprogrammed . | . . . . Reused . | . . . . Traps Extracted . | . . . . Installed . | . . . . Triggered . | . . . . Machines | -11 -10 -9 -8 ---------- Run | Yrd Mat Mat Mat Machines Disabled 7 | . 1 4 2 Max in Single Turn 3 | . 1 3 1 Machines Repaired . | . . . . Machines Dismantled . | . . . . Machines Sabotaged . | . . . . Overloaded Fab Kills . | . . . . Hacking | -11 -10 -9 -8 --------- Run | Yrd Mat Mat Mat Machines Accessed 7 | . 1 3 3 Terminals 5 | . 1 2 2 Fabricators . | . . . . Repair Stations 1 | . . 1 . Recycling Units 1 | . . . 1 Scanalyzers . | . . . . Garrison Access . | . . . . Total Hacks 25 | . 2 11 12 Successful 20 | . 1 9 10 Failed 5 | . 1 2 2 Catastrophic 2 | . 1 . 1 Database Lockouts . | . . . . Manual . | . . . . Terminals 17 | . 2 9 6 Fabricators . | . . . . Repair Stations 2 | . . 2 . Recycling Units 6 | . . . 6 Scanalyzers . | . . . . Garrison Access . | . . . . Terminal Hacks 12 | . 1 7 4 Record 2 | . 1 1 . Prototype ID Bank 1 | . . 1 . Alert Level 1 | . . . 1 Locate Traps 1 | . . 1 . Dispatch Records 1 | . . 1 . Maintenance Status 1 | . . 1 . Reinforcement Status 1 | . . 1 . Recall Investigation 1 | . . . 1 Hauler Manifests 2 | . . 1 1 Zone Layout 1 | . . . 1 Fabricator Hacks . | . . . . Repair Station Hacks 2 | . . 2 . Scan Component 1 | . . 1 . Repair 1 | . . 1 . Recycling Unit Hacks 6 | . . . 6 Process 1 | . . . 1 Report Inventory 2 | . . . 2 Retrieve Matter 3 | . . . 3 Scanalyzer . | . . . . Garrison Access Hacks . | . . . . Unauthorized Hacks . | . . . . Terminals . | . . . . Fabricators . | . . . . Repair Stations . | . . . . Recycling Units . | . . . . Scanalyzers . | . . . . Garrison Access . | . . . . Data Cores Recovered . | . . . . Used . | . . . . Hacking Detections 3 | . 1 2 . Full Trace Events 1 | . . 1 . Feedback Events . | . . . . Feedback Blocked . | . . . . Robot Schematics Acquired . | . . . . Robots Built . | . . . . Authchips . | . . . . Time . | . . . . Total Robot Build Rating . | . . . . Part Schematics Acquired . | . . . . Parts Built . | . . . . Authchips . | . . . . Time . | . . . . Total Part Build Rating . | . . . . Parts Repaired 1 | . . 1 . Time 26 | . . 26 . Parts Recycled . | . . . . Recycled Matter 68 | . . . 68 Retrieved Matter 88 | . . . 88 Retrieved Components . | . . . . Parts Scanalyzed . | . . . . Part Schematics Acquired . | . . . . Parts Damaged . | . . . . Bothacking | -11 -10 -9 -8 ------------ Run | Yrd Mat Mat Mat Used RIF Installer . | . . . . Robots Hacked . | . . . . Non-combat . | . . . . Combat . | . . . . Robot Hacks Applied . | . . . . Relay Couplers Released . | . . . . Fabnet Peak Effective % . | . . . . Robots Rewired . | . . . . Allies Hacked . | . . . . Hacks Repelled . | . . . . Allies | -11 -10 -9 -8 -------- Run | Yrd Mat Mat Mat Total Allies . | . . . . Largest Group . | . . . . Highest-Rated Group . | . . . . Highest-Rated Ally . | . . . . Total Orders . | . . . . Ally Attacks . | . . . . Total Damage . | . . . . Kills . | . . . . Allies Corrupted . | . . . . Allies Melted . | . . . . Intel | -11 -10 -9 -8 ------- Run | Yrd Mat Mat Mat Robot Analysis Total . | . . . . Derelict Logs Recovered . | . . . . Drone Launches . | . . . . Drone Recoveries . | . . . . Exploration | -11 -10 -9 -8 ------------- Run | Yrd Mat Mat Mat Turns Passed 2960 | 258 749 717 1236 Spaces Moved 1256 | 134 270 437 415 Core 20 | 20 . . . Treads 558 | 114 196 . 248 Legs 4 | . . . 4 Wheels 674 | . 74 437 163 Hover . | . . . . Flight . | . . . . Fastest Speed 50 | 50 110 105 125 Average Speed 172 | 143 188 122 224 Slowest Speed 400 | 160 240 160 400 Overloaded Moves . | . . . . Propulsion Burnouts . | . . . . Robots Hopped . | . . . . Cave-ins Triggered . | . . . . Exploration Rate (%) 21 | 6 28 30 23 Regions Visited 3 Branch Regions . Pre-discovered Areas . | . . . . Known Exits Taken . | . . . . Unknown Exits Taken 3 | 1 1 1 . Scrap Searched . | . . . . Spaces Dug 30 | . 4 25 1 Terrain Destroyed 424 | . 7 153 264 Melee 1 | . . . 1 Projectile 9 | . 5 . 4 AOE 414 | . 2 153 259 Terrain Rammed . | . . . . Walls Destroyed . | . . . . Machines Disabled . | . . . . Actions | -11 -10 -9 -8 --------- Run | Yrd Mat Mat Mat Total 1755 | 185 392 578 600 Wait 92 | 8 21 26 37 Move 1253 | 133 269 436 415 Hop . | . . . . Pick Up 98 | 17 19 35 27 Fast Attach . | . . . . Attach 59 | 6 6 11 36 Detach 2 | . 2 . . Swap 21 | . 8 5 8 Drop 45 | 4 3 30 8 Fire 184 | 17 64 35 68 Melee 1 | . . . 1 Ram . | . . . . Kick . | . . . . Crush . | . . . . Escape Stasis . | . . . . Rewire . | . . . . Trap . | . . . . Miscellaneous . | . . . . Route ------- -11/Scrapyard -10/Materials -9/Materials -8/Materials (discovered 1 exit: [*Fac]) History --------- Turn | Location | Event 14 | -11/Scrapyard | Discovered new exit (range 16) 259 | -11/Scrapyard | Entered Materials 301 | -10/Materials | Build established: Mutant 888 | -10/Materials | Discovered new exit (range 3) 926 | -10/Materials | Core integrity fell below 50% 1008 | -10/Materials | Entered another Materials area 1008 | -9/Materials | Evolved 2 slots: Power x1, Utility x1 1193 | -9/Materials | Build established: Scavenger-Mutant 1556 | -9/Materials | Repaired Seismic Detector 1610 | -9/Materials | Discovered new exit (range 11) 1725 | -9/Materials | Entered another Materials area 1725 | -8/Materials | Evolved 2 slots: Utility x1, Weapon x1 2353 | -8/Materials | Discovered new exit (range 15) 2491 | -8/Materials | Destroyed 7 combat bots 2522 | -8/Materials | Lost 10 parts (3n3u4w) 2525 | -8/Materials | First assault squad dispatched 2614 | -8/Materials | Lost 4 parts (1p3w) 2697 | -8/Materials | Core integrity fell below 50% 2886 | -8/Materials | Build established: Mutant 2952 | -8/Materials | Core integrity fell below 20% 2961 | -8/Materials | Destroyed by G-47 Trooper with Particle Gun Last Messages --------------- Overheating: Wheel damaged (-24). Wheel destroyed. K-01 Serf collects debris. Power failure, Lgt. Deuterium Engine shutdown. G-47 Trooper knocked back. Critical hit (Burn: +37). Nuclear Core destroyed. R-06 Scavenger collects Transport Network Coupler. Overheating: Energy bleed (-33). K-01 Serf collects debris. Lgt. Cannon destroyed. R-06 Scavenger collects Lgt. Ion Engine. K-01 Serf collects debris. Hrd. Medium Armor Plating destroyed. Lgt. Deuterium Engine destroyed. Lgt. Treads destroyed. K-01 Serf collects debris. G-47 Trooper destroyed. K-01 Serf collects debris. Map ----- +----------------------------------------------------+ | ?????????????????????????????????????????????????? | | ?????????????????????????????????????????????##### | | ?????????????????????????????????????????????# | | ?????????????????????????????????????????????# | | ?????????????????????????????????????????????# | | ??????????!! ??? ??????????????????????#???# # | | ??????????[! ?? #######???????????????????# # | | ?????????#[! ?? ## ########????????????# # | | ?????????# ?? ## ##########??????????# # | | ?????????# ?? ## # ###??????????# # | | ?????????+ ?? ## # #####??#?????# # | | ?????????# ? ## # ## #?????#???# # | | ?????????# ## # # ##???????### # | | ????##???# ## # # ########?## # | | ????? ??# """"" ## # # # ### # | | ?????"""?# """"" #####+####+##### ####### + | | ??????"" # "%""" #?## # | | ???????? + ""% " #### # | | ?????????# "" ### # | | ?????????# %=! % # # ## ####### # #### ### # | | ########## %= ### # # # # # | | %* ### # ""T"" # ########## # | | % %%=### # """"" ###????????# # | | *k%u=% # #??????????# # | | " =%[k ###########?#????#???# # | | """ [ %@%% ??????# # | | ########### # # % gg%a ??????# # | | ??????????#### # #############????????# # | | ?????????????### ###?????????????????## # | | ?????????????### # #????????????????#?# # | | ?????????????# # u ! # #??????????????????# # | | ?????????????### |% ###??????????????????# # | | ?????????????# #= * ###??????????????#???# # | | ?????????????# # #### ###??????????????##### | | ?????????????# # # # # #??????????? ?? | | ?????????????# # ## # ##?????????????? | | ????????###### # # ## ##???????????????##### | | ????????# ## #### #????????????????#???## | | ????????# T ## #??# #????????????????###### | | ????????# ## ##?# #???????????????? ## | | ????????# # #?# #???????????????? ## | | ????????# # #?# #???????????????? ## | | ????????# + #?# < #???????????????? # | | ????????# # #?# #??????????????????????? | | ????????# # #?#####??????????????????????? | | ????????# ! #######????????????????????????????? | | ????????# ! #????????????????????????????????? | | ????????# % ###????????????????????????????????? | | ????????# #??????????????????????????????????? | | ????????## ####??????????????????????????????????? | +----------------------------------------------------+ Best States ------------- Heat Dissipation 45 Energy Generation 23 Energy Capacity 440 Matter Stores 300 Matter Capacity 300 Sight Range 16 Terrain Scan Range 14 Terrain Scan Density 10 Armor Coverage 225 Evasion (%) 50 Recoil Reduction 2 Item Schematics ----------------- None Robot Schematics ------------------ None Fabricated ------------ Nothing Alien Tech Used ----------------- None Achievements -------------- Hey, That's Mine! Shopping List Significant Disruption Use The Force Challenges ------------ None Game ------ Seed ScrapStructuralMultirail Manual? 0 Play Time 01:00:29 Cumulative 7.7 hours Start 2024.10.18 @ 13:11:58 End 2024.10.18 @ 14:13:18 Sessions 1 Manual Loads 0 Difficulty Rogue Special Mode None Game No. 6 Rogue 6 Adventurer 0 Explorer 0 Win Type - Total 0 Types 0/0/0/0/0/0/0/0/0 Lore% 3 Gallery% 12 Achievement% 13 Wizard Run 0 Options --------- Layout 1 ASCII 0 Keyboard 0 Movement Arrows Keybinds 0 Fullscreen 1 Font 32/SmallcapsGlow Map View 50x40 Zoom Use 0% Tactical HUD 0 Map Filters NONE Filters NONE Steam 1 RUN: 1b818b2a-9e7f-44c0-a1a5-c43c419df336